[Event "Mongolian Championship Open 2022"]
[Site "Chingis Khentii"]
[Date "2022.05.15"]
[Round "2.5"]
[White "Batchuluun, Tsegmed"]
[Black "Amilal Munkhdalai"]
[Result "1/2-1/2"]
[ECO "E11"]
[WhiteElo "2536"]
[BlackElo "2033"]
[Annotator "TA"]
[PlyCount "97"]
[EventDate "2022.05.12"]
[EventType "tourn"]
[EventCountry "MGL"]
[SourceTitle "playchess.com"]
[Source "ChessBase"]
[SourceQuality "1"]
[TimeControl "40/5400+30:1800+30"]

{[%evp 24,97,32,33,67,55,51,63,62,68,63,55,66,42,43,24,25,18,24,26,28,28,90,71,91,85,90,78,97,95,90,89,89,89,94,88,86,91,91,87,80,87,87,41,60,69,17,0,72,0,17,0,75,66,87,0,0,0,95,85,85,0,0,0,0,0,0,0,0,0,0,0,0,0,95,0]} 1. d4 {[%emt 1:31:00]} Nf6 {[%emt 1:31:00]} 2. c4 {[%emt 0:00:30]} e6 {[%emt 0:00:30]} 3. g3 {[%emt 0:00:30]} Bb4+ {[%emt 0:00:30]} 4. Bd2 {[%emt 0:00:30]} Qe7 {[%emt 0:00:30]} 5. Nf3 {[%emt 0:00:30]} Nc6 {[%emt 0:00:30]} 6. Nc3 Bxc3 {[%emt 0:00:30]} 7. Bxc3 {[%emt 0:01:00]} Ne4 {[%emt 0:00:30]} 8. Rc1 {[%emt 0:00:30]} Nxc3 {[%emt 0:00:30]} 9. Rxc3 {[%emt 0:00:30]} O-O {[%emt 0:00:30]} 10. Bg2 {[%emt 0:00:30]} d6 {[%emt 0:00:30]} 11. d5 {[%emt 0:00:30]} Nb8 {[%emt 0:00:30]} 12. dxe6 {[%emt 0:00:30]} fxe6 {[%emt 0:00:30]} 13. O-O {[%emt 0:00:30][%cal Oc4c5]} Nc6 {[%emt 0:00:30] E11: Bogo-Indian.} 14. Nd4 {[%emt 0:00:30]} Bd7 {[%emt 0:00:30]} 15. c5 {[%emt 0:00:30]} d5 {[%emt 0:00:30] White is slightly better.} 16. e4 {[%emt 0:00:30]} Nxd4 {[%emt 0:00:30]} 17. Qxd4 {[%emt 0:00:30]} c6 {[%emt 0:00:30]} 18. Re3 {[%emt 0:00:30][%cal Re4d5]} Qf6 {[%emt 0:00:30] [#]} 19. e5 $146 {[%emt 0:00:30]} ({Predecessor:} 19. Qxf6 Rxf6 20. f4 Rff8 21. Bh3 Rfd8 22. Rb3 Rab8 23. Ra3 e5 24. Bxd7 Rxd7 25. fxe5 dxe4 {½-½ (45) Manafov,V (2193)-Tsoi,D (2371) Moscow 2018}) 19... Qe7 {[%emt 0:00:30]} 20. h4 {[%emt 0:00:30]} b6 {[%emt 0:00:30]} 21. Rc1 {[%emt 0:00:30]} Rfb8 {[%emt 0:00:30]} 22. b3 {[%emt 0:00:30]} bxc5 {[%emt 0:00:30]} (22... a5 $11) 23. Rxc5 $16 {[%emt 0:00:30]} a5 {[%emt 0:00:30] And now ...Rb4 would win.} 24. a3 {[%emt 0:00:30] Against Rb4} Qd8 {[%emt 0:00:30]} 25. Bf1 {[%emt 0:00:30]} Kh8 {[%emt 0:00:30]} 26. Be2 {[%emt 0:00:30]} Be8 {[%emt 0:00:30]} 27. Rec3 {[%emt 0:00:30]} Rb7 {[%emt 0:00:30]} 28. Bd1 {[%emt 0:00:30]} Rab8 {[%emt 0:00:30]} 29. Bc2 {[%emt 0:00:30]} Rb5 {[%emt 0:00:30]} 30. Rxb5 {[%emt 0:00:30]} Rxb5 {[%emt 0:00:30]} 31. Qa7 {[%emt 0:00:30]} Kg8 {[%emt 0:00:30]} 32. a4 {[%emt 0:00:30]} Rb8 {[%emt 0:00:30]} 33. Qc5 {[%emt 0:00:30] White is much more active.} (33. Kg2 $16) 33... Qc7 $14 {[%emt 0:00:30]} 34. f4 {[%emt 0:00:30]} ({Don't play} 34. Rf3 Bh5 35. Re3 Rd8 $11) 34... Rd8 {[%emt 0:00:30]} 35. Qd4 {[%emt 0:00:30]} Rb8 {[%emt 0:00:30]} (35... Rc8 $1 $11) 36. Qc5 {[%emt 0:00:30]} (36. Bd1 $16) 36... Rd8 $1 $11 {[%emt 0:00:30]} 37. Qd4 {[%emt 0:00:30]} (37. Bd3 $11) 37... Rb8 $16 38. Kf2 {[%emt 0:00:30]} Rc8 {[%emt 0:01:00]} 39. Rc5 (39. Qc5 $1 $16) 39... Rb8 $1 $11 {[%emt 0:00:30]} 40. Rc3 {[%emt 0:01:00]} (40. Kf1 $11) 40... Rc8 $1 $16 {[%emt 0:00:30]} 41. Qc5 $1 {[%emt 0:30:30]} Rd8 {[%emt 0:30:30] [#]} 42. Bd1 ({White should try} 42. Bd3 $1 $16) 42... d4 $11 {[%emt 0:00:30]} 43. Rd3 {[%emt 0:01:00]} Rd5 {[%emt 0:00:30]} 44. Qc4 {[%emt 0:00:30] Bf3 is the strong threat.} Bg6 $1 {[%emt 0:00:30]} 45. Rxd4 {[%emt 0:00:30] aiming for Bg4.} Qb6 {[%emt 0:00:30]} 46. Ke3 {[%emt 0:00:30]} h5 {[%emt 0:00:30]} 47. Qc3 {[%emt 0:00:30]} Kh8 {[%emt 0:00:30]} 48. Qd2 Kg8 {[%emt 0:00:30] [#]} (48... Kh7 $11 {remains equal.}) 49. Qc3 {[%emt 0:01:00] Weighted Error Value: White=0.13 (very precise) /Black=0.09 (flawless)} (49. b4 $1 $16) 1/2-1/2

[Event "Mongolian Championship Open 2022"]
[Site "Chingis Khentii"]
[Date "2022.05.15"]
[Round "2.6"]
[White "Batsuren, Dambasuren"]
[Black "Amartuvshin, Ganzorig"]
[Result "1-0"]
[ECO "E04"]
[WhiteElo "2501"]
[BlackElo "2350"]
[Annotator "TA"]
[PlyCount "158"]
[EventDate "2022.05.12"]
[EventType "tourn"]
[EventCountry "MGL"]
[SourceTitle "playchess.com"]
[Source "ChessBase"]
[SourceQuality "1"]
[TimeControl "40/5400+30:1800+30"]

{[%evp 12,158,10,0,42,33,38,31,47,35,37,0,0,0,0,0,0,0,0,0,0,0,0,0,0,0,50,52,54,54,48,57,47,48,62,56,68,37,39,35,49,62,59,61,50,62,78,82,117,69,85,28,27,18,14,16,24,27,37,13,18,15,24,28,80,85,81,40,52,11,20,0,0,0,0,0,0,0,15,0,0,0,5,5,8,8,8,0,95,89,154,149,137,0,137,137,137,97,98,111,141,141,280,280,304,141,1242,1064,12811,12812,12814,12815,12816,12817,12817,12818,12819,12818,12814,5665,12817,12816,12812,12805,12808,12798,12793,10543,12787,12128,11654,11269,8837,8510,7871,7136,6613,6613,6359,6216,5731,5535,5414,5391,4652,4645,4618,0,576]} 1. d4 {[%emt 0:00:02]} Nf6 {[%emt 0:00:06]} 2. c4 {[%emt 0:00:05]} e6 {[%emt 0:00:08]} 3. g3 {[%emt 0:05:29]} Bb4+ {[%emt 0:00:31]} 4. Nd2 {[%emt 0:00:57]} O-O {[%emt 0:07:05]} 5. Bg2 {[%emt 0:00:19]} d5 {[%emt 0:08:37]} 6. Ngf3 {[%emt 0:00:13]} dxc4 {[%emt 0:00:44]} 7. Qc2 {[%emt 0:00:25]} b6 {[%emt 0:06:32] E04: Open Catalan: 5 Nf3.} 8. O-O {[%emt 0:03:24]} Bb7 {[%emt 0:00:31]} 9. Nxc4 {[%emt 0:00:57]} Be4 {[%emt 0:03:36] White is slightly better.} 10. Qb3 {[%emt 0:02:22]} Nc6 {[%emt 0:05:31][%cal Bb8c6,Bc6d4,Bd4e2][%mdl 32]} 11. Nfe5 {[%emt 0:19:04] [#]} Nxd4 $146 {[%emt 0:15:33]} ({Predecessor:} 11... Bxg2 12. Kxg2 Qd5+ 13. f3 Nxd4 14. Qxb4 Nc2 15. Qc3 Nxa1 16. Bd2 Nc2 17. Qxc2 c5 {1-0 (40) Seliverstov,V (2464)-Reshetnikov,A (2492) Moscow 2017}) 12. Qxb4 {[%emt 0:00:17]} Nxe2+ {[%emt 0:00:05]} (12... Nc2 13. Qc3 Nxa1 14. b3 $14) 13. Kh1 {[%emt 0:00:06]} Bxg2+ {[%emt 0:00:06]} 14. Kxg2 {[%emt 0:00:05]} Qd5+ $1 {[%emt 0:00:06]} 15. f3 {[%emt 0:00:10]} b5 {[%emt 0:00:22]} 16. Bg5 $1 {[%emt 0:00:22] Rad1 is the strong threat.} bxc4 {[%emt 0:01:15]} 17. Bxf6 {[%emt 0:00:32] And now Rad1 would win. Dancing on a razor blade.} Rab8 $1 {[%emt 0:10:30]} 18. Qe7 {[%emt 0:17:27] aiming for Rad1.} gxf6 {[%emt 0:23:03]} ({Black should try} 18... Nd4 $1 $11 19. Rad1 Rxb2+ 20. Kh1 c5 21. Bxg7 (21. Nd7 Rc8 $11) 21... Kxg7 22. Qg5+ (22. Nd7 Rc8 $11) 22... Kh8 23. Qf6+ Kg8) 19. Qxf6 $14 {[%emt 0:01:08]} Qd8 {[%emt 0:02:17]} (19... Rxb2 20. Ng4 (20. Qg5+ Kh8 $16) 20... Nd4+ 21. Kh1 $16) 20. Qxd8 {[%emt 0:03:02]} (20. Ng4 {feels hotter.} h5 21. Rfd1 Qxf6 22. Nxf6+ Kg7 23. Nxh5+ Kh6 24. Rd2) 20... Rbxd8 {[%emt 0:00:30]} 21. Rf2 {[%emt 0:00:21]} Nd4 {[%emt 0:00:42][%cal Oc4c3]} 22. Rc1 {[%emt 0:00:37]} f6 {[%emt 0:01:50]} 23. Nxc4 {[%emt 0:01:51]} e5 {[%emt 0:00:24]} 24. Rc3 {[%emt 0:04:47]} Nb5 {[%emt 0:03:40]} 25. Rb3 {[%emt 0:03:17]} c6 {[%emt 0:00:56]} 26. Na5 {[%emt 0:03:21]} Nd4 {[%emt 0:00:08]} 27. Rc3 {[%emt 0:00:08]} Rd6 {[%emt 0:00:26]} 28. f4 {[%emt 0:01:01]} exf4 {[%emt 0:03:36]} 29. Rxf4 {[%emt 0:01:00]} Re8 {[%emt 0:01:42]} 30. Rf2 {[%emt 0:01:07]} (30. Nc4 $16 Rd7 31. Rxf6) 30... Ree6 {[%emt 0:02:10]} 31. b4 {[%emt 0:03:48]} ({White should play} 31. Nb3 $16) 31... Kf7 $11 {[%emt 0:00:25]} 32. Rc5 {[%emt 0:03:22]} Kg6 {[%emt 0:01:17]} 33. Rd2 {[%emt 0:02:42]} Nf5 {[%emt 0:01:03]} 34. Rxd6 {[%emt 0:00:21]} Rxd6 {[%emt 0:00:07][%mdl 4096] Endgame KRN-KRN} 35. Nc4 {[%emt 0:05:04]} Rd4 {[%emt 0:00:14][%cal Od4c4]} 36. Kf3 {[%emt 0:00:57]} (36. Rxc6 $2 Rxc4 $1 {[%mdl 512]} 37. Rxc4 Ne3+ 38. Kf3 Nxc4 $19) 36... Ne7 {[%emt 0:00:08]} 37. a3 {[%emt 0:01:07]} Rd1 {[%emt 0:00:41]} (37... h5 $11) 38. Ra5 $1 $16 {[%emt 0:00:59]} Rd7 {[%emt 0:00:21]} 39. Ra6 {[%emt 0:00:47]} Nf5 {[%emt 0:00:40]} 40. g4 {[%emt 0:00:00]} Nd4+ {[%emt 0:00:00]} 41. Kf4 {[%emt 0:04:12]} Re7 {[%emt 0:02:39]} 42. Ne3 {[%emt 0:06:17]} Ne2+ {[%emt 0:00:17]} 43. Kf3 {[%emt 0:00:09]} Nd4+ {[%emt 0:00:07]} 44. Kf2 {[%emt 0:01:03]} Kg5 {[%emt 0:01:59]} 45. Ra5+ {[%emt 0:00:48]} Kf4 {[%emt 0:04:46]} 46. Nf5 {[%emt 0:00:09]} Nxf5 {[%emt 0:00:13]} ({Don't take} 46... Re2+ 47. Kf1 Re4 48. Nxd4 (48. Rxa7 Nb5 $11) 48... Rxd4 49. Ke2 $14 (49. Rxa7 Rd3 $14)) 47. Rxf5+ {[%emt 0:01:41]} Kxg4 {[%emt 0:00:35]} 48. Rxf6 $11 {[%emt 0:00:05] KR-KR} Rc7 {[%emt 0:00:52]} 49. Ke3 {[%emt 0:00:44]} Kg5 {[%emt 0:04:26]} (49... h5 $11) 50. Rd6 $16 {[%emt 0:00:15]} h5 {[%emt 0:04:50]} ({Better is} 50... a5) 51. Kd4 {[%emt 0:00:48]} h4 {[%emt 0:01:41]} 52. h3 {[%emt 0:06:44]} (52. a4 $16) 52... Kf4 {[%emt 0:00:20]} (52... Rg7 $1 $11 {keeps the balance.}) 53. Rg6 $1 {[%emt 0:00:47] Hoping for Rg4+.} Rd7+ {[%emt 0:00:10]} 54. Kc4 {[%emt 0:02:10] Threatens to win with Rg4+.} Rd1 {[%emt 0:00:31]} 55. Rg4+ {[%emt 0:05:24]} ({Much weaker is} 55. Rxc6 $6 Kg3 56. Rg6+ (56. Ra6 Rd7 $11) 56... Kxh3 $11) 55... Ke5 {[%emt 0:00:09]} 56. Rxh4 {[%emt 0:00:06] Black must now prevent Kc5.} Ra1 {[%emt 0:01:45] [#]} (56... Rc1+ $16 {keeps fighting.} 57. Kb3 Rf1) 57. Kc5 $1 $18 {[%emt 0:04:02]} Rxa3 {[%emt 0:01:19]} 58. Kxc6 {[%emt 0:00:27]} (58. Rh5+ $18 {is the precise move to win.} Kf4 59. Kxc6) 58... Rg3 $2 {[%emt 0:01:58][%mdl 8192]} (58... a6 $16 59. Rh5+ Kd4) 59. Kb7 {[%emt 0:04:53]} Rg7+ {[%emt 0:00:07] [#]} 60. Ka6 $1 {[%emt 0:00:06]} Kd5 {[%emt 0:00:30]} 61. Rg4 {[%emt 0:01:49]} Rh7 {[%emt 0:00:10]} 62. h4 {[%emt 0:00:13][%cal Bh3h4,Bh4h5,Bh5h6][%mdl 32]} Kd6 {[%emt 0:00:08]} 63. Rc4 {[%emt 0:16:05]} Ke6 {[%emt 0:01:22]} 64. h5 {[%emt 0:00:00]} Kd5 {[%emt 0:02:26]} 65. Rh4 {[%emt 0:00:00]} (65. Rg4 $142 Rd7 66. h6) 65... Kc6 {[%emt 0:00:04]} 66. h6 {[%emt 0:00:00]} Kd5 {[%emt 0:00:05]} 67. Rh5+ {[%emt 0:00:00]} Kc4 {[%emt 0:00:04]} 68. b5 {[%emt 0:00:00]} Kd4 {[%emt 0:00:23]} 69. Rh1 {[%emt 0:00:00]} Kc5 {[%emt 0:00:33]} 70. Rh4 {[%emt 0:00:00]} Kd5 {[%emt 0:00:06]} 71. Ka5 {[%emt 0:00:00]} Kc5 {[%emt 0:00:12]} 72. Rh2 {[%emt 0:00:00]} Kc4 {[%emt 0:00:08]} 73. Rh3 {[%emt 0:00:00]} Kc5 {[%emt 0:00:04]} 74. Rc3+ {[%emt 0:00:00]} Kd5 {[%emt 0:00:07]} 75. Ka6 {[%emt 0:00:00]} Kd4 {[%emt 0:00:17]} 76. Rc8 {[%emt 0:00:00]} Kd5 {[%emt 0:00:04]} 77. Rc6 {[%emt 0:01:26]} Rf7 {[%emt 0:00:18]} 78. Rg6 {[%emt 0:01:44]} Rh7 {[%emt 0:00:10]} 79. Rc6 $2 {[%emt 0:04:50]} (79. Rg7 $18 Rxh6+ 80. Kxa7) 79... Kd4 $2 {[%emt 0:16:27][%mdl 8192] Weighted Error Value: White=0.13 (very precise) /Black=0.19 (very precise)} (79... Rf7 $1 $11 {and Black has nothing to worry.} 80. Rg6 Kc5) 1-0

[Event "Mongolian Championship Open 2022"]
[Site "Chingis Khentii"]
[Date "2022.05.15"]
[Round "3.1"]
[White "Gundavaa, Bayarsaikhan"]
[Black "Batchuluun, Tsegmed"]
[Result "1/2-1/2"]
[ECO "D41"]
[WhiteElo "2495"]
[BlackElo "2536"]
[Annotator "TA"]
[PlyCount "79"]
[EventDate "2022.05.12"]
[EventType "tourn"]
[EventCountry "MGL"]
[SourceTitle "playchess.com"]
[Source "ChessBase"]
[SourceQuality "1"]
[TimeControl "40/5400+30:1800+30"]

{[%evp 17,79,0,13,0,8,0,0,0,0,0,10,0,0,0,0,0,0,0,0,0,0,0,0,0,0,0,0,0,20,0,33,32,27,29,28,23,31,0,60,0,0,-4,149,168,254,254,387,377,385,185,204,203,206,198,198,206,201,177,171,0,95,0,108,0]} 1. d4 {[%emt 0:00:45]} Nf6 {[%emt 0:00:10]} 2. c4 {[%emt 0:00:33]} e6 {[%emt 0:00:07]} 3. Nc3 {[%emt 0:01:14]} d5 {[%emt 0:00:30]} 4. Nf3 {[%emt 0:06:42]} c5 {[%emt 0:01:06]} 5. e3 {[%emt 0:03:19]} Nc6 {[%emt 0:00:49]} 6. cxd5 {[%emt 0:03:43]} Nxd5 {[%emt 0:02:42]} 7. Bc4 {[%emt 0:05:51]} Nxc3 {[%emt 0:19:25]} 8. bxc3 {[%emt 0:00:10]} Be7 {[%emt 0:00:10]} 9. O-O {[%emt 0:03:37]} O-O {[%emt 0:00:17]} 10. Qe2 {[%emt 0:07:08] D41: Queen's Gambit Declined: Semi-Tarrasch with 5 cxd5.} b6 {[%emt 0:04:33]} 11. Rd1 {[%emt 0:03:43]} Qc7 {[%emt 0:01:18]} 12. e4 {[%emt 0:06:59] The position is equal.} Bb7 {[%emt 0:06:40]} 13. d5 {[%emt 0:04:00]} exd5 {[%emt 0:01:57]} 14. Bxd5 {[%emt 0:05:54] [#]} Rad8 $146 {[%emt 0:05:59]} ({Predecessor:} 14... Rae8 15. Qe3 Bf6 16. Rb1 Ne7 17. Bxb7 Qxb7 18. e5 Ng6 19. Qxc5 Nxe5 20. Nxe5 Rxe5 21. Qd6 Ra5 22. Ba3 Rc8 23. c4 h6 24. c5 Rxa3 25. c6 Qc7 {0-1 (25) Belotelov,D (2267)-Groszpeter,A (2502) Pardubice 2003}) 15. Bb2 {[%emt 0:00:39]} Bf6 {[%emt 0:17:46]} 16. c4 {[%emt 0:02:29]} Bxb2 {[%emt 0:01:22]} 17. Qxb2 {[%emt 0:00:05]} h6 {[%emt 0:03:20]} 18. Rd2 {[%emt 0:00:59]} Rfe8 {[%emt 0:04:36]} 19. Rad1 {[%emt 0:00:21]} Bc8 {[%emt 0:07:40]} 20. h3 {[%emt 0:03:27]} Kf8 {[%emt 0:00:56]} 21. Rd3 {[%emt 0:03:31]} Nb4 {[%emt 0:08:55]} 22. Re3 {[%emt 0:01:32]} Qf4 {[%emt 0:02:01]} 23. Qb1 {[%emt 0:05:37]} Kg8 {[%emt 0:02:57]} 24. a3 {[%emt 0:03:32]} Nxd5 {[%emt 0:00:08]} 25. cxd5 {[%emt 0:00:06]} f6 {[%emt 0:01:06]} 26. Qc2 {[%emt 0:05:59]} Qd6 {[%emt 0:00:52]} 27. Nh4 {[%emt 0:02:09]} Re5 {[%emt 0:03:53]} (27... b5 $11) 28. f4 {[%emt 0:01:38]} (28. Ng6 $14) 28... Ree8 $11 {[%emt 0:00:03]} 29. Qf2 {[%emt 0:01:55]} g5 $2 {[%emt 0:01:19]} ({Better is} 29... c4 $11) 30. e5 $1 $36 {[%emt 0:01:27][%mdl 2048] Black is under strong pressure. White is more active.} ({Don't do} 30. Ng6 $6 c4 $14) 30... fxe5 {[%emt 0:00:24]} (30... Qf8 $142) 31. fxg5 $18 {[%emt 0:00:13]} hxg5 {[%emt 0:00:23]} (31... h5 $142 32. g6 Rf8) 32. Rg3 $1 {[%emt 0:01:27]} ({Inferior is} 32. Nf5 Qf6 33. g4 Be6 $1 $15) 32... Qh6 {[%emt 0:01:25]} 33. Nf3 {[%emt 0:00:04]} (33. Nf5 $142 Qf6 34. Qe3 Bxf5 35. Rf1) 33... g4 {[%emt 0:00:05]} 34. Nh2 {[%emt 0:00:15]} Qf4 {[%emt 0:00:37]} 35. Qe1 {[%emt 0:00:08][%cal Rh2g4]} ({Less strong is} 35. Nxg4 Qxf2+ 36. Nxf2+ Kh8 $14) 35... Rd6 {[%emt 0:01:12]} 36. Nxg4 {[%emt 0:10:24]} Rg6 {[%emt 0:00:01] Inhibits Nf6+.} 37. Rf3 {[%emt 0:00:06]} Qg5 {[%emt 0:00:04] [#]} 38. Rg3 {[%emt 0:01:06]} ({White must play} 38. Nf6+ $1 $18 {[%mdl 512]} Kh8 39. Qe2 $1) 38... Qf4 $1 $16 {[%emt 0:00:06]} 39. Rf3 {[%emt 0:03:27]} Qg5 {[%emt 0:00:04] [#]} 40. Rg3 {[%emt 0:00:00] Weighted Error Value: White=0.20 (precise) /Black=0.20 (precise)} ({White should try} 40. Nf6+ $1 $16 {[%mdl 512]} Kh8 {[#]} 41. Qe2 $1) 1/2-1/2

[Event "Mongolian Championship Open 2022"]
[Site "Chingis Khentii"]
[Date "2022.05.15"]
[Round "3.2"]
[White "Munkhgal, Gombosuren"]
[Black "Bilguun, Sumiya"]
[Result "0-1"]
[ECO "E04"]
[WhiteElo "2502"]
[BlackElo "2454"]
[Annotator "TA"]
[PlyCount "56"]
[EventDate "2022.05.12"]
[EventType "tourn"]
[EventCountry "MGL"]
[SourceTitle "playchess.com"]
[Source "ChessBase"]
[SourceQuality "1"]
[TimeControl "40/5400+30:1800+30"]

{[%evp 10,56,20,-8,0,-19,-5,-5,0,-64,-50,-61,-58,-75,-50,-27,-45,-101,0,0,0,-133,-139,-125,-28,-43,-36,-36,-36,-35,-18,-43,-91,-97,-69,-148,-150,-166,-166,-197,-183,-202,-130,-718,-703,-1918,-1013,-1447,-666]} 1. d4 {[%emt 0:00:10]} Nf6 {[%emt 0:00:35]} 2. c4 {[%emt 0:00:07]} e6 {[%emt 0:00:07]} 3. g3 {[%emt 0:00:05]} d5 {[%emt 0:00:09]} 4. Bg2 {[%emt 0:00:04]} dxc4 {[%emt 0:05:24]} 5. Nf3 {[%emt 0:01:37]} Bb4+ {[%emt 0:00:19]} 6. Nbd2 {[%emt 0:00:05][%mdl 1024] White has compensation.} b5 {[%emt 0:04:48] Inhibits Qa4. E04: Open Catalan: 5 Nf3.} 7. O-O {[%emt 0:07:12][%cal Od2c4]} a5 {[%emt 0:10:12]} 8. a3 {[%emt 0:07:18]} Be7 {[%emt 0:17:50] The position is equal.} 9. a4 {[%emt 0:18:12]} ({Better is} 9. b3 $11) 9... c6 $15 {[%emt 0:00:20]} 10. Ne5 {[%emt 0:05:33]} Nd5 {[%emt 0:09:28][%cal Bf6d5,Bd5b6,Bb6a4][%mdl 32]} (10... Qxd4 $2 11. Nxc6 Qd7 12. axb5 $18) 11. e4 {[%emt 0:08:48] [#]} Nb6 $146 {[%emt 0:13:18]} (11... Nb4 $5 {[%cal Rd8d4]} 12. d5 exd5 13. exd5 cxd5 $11) ({Predecessor:} 11... Nf6 12. Ng4 Nxg4 13. Qxg4 h5 14. Qe2 e5 15. dxe5 Na6 16. e6 Bxe6 17. e5 Nb4 18. axb5 cxb5 {0-1 (36) Tabatabaei,M (2639)-Alekseenko,K (2710) Riga 2021}) 12. Qg4 {[%emt 0:28:58]} O-O {[%emt 0:08:00]} 13. Ndf3 {[%emt 0:01:30]} (13. axb5 $15 cxb5 14. Ndf3) 13... Kh8 {[%emt 0:00:42]} (13... Nxa4 $17 14. h4 (14. Bh6 Bf6 $17) 14... c3 15. bxc3 (15. Bh6 Bf6 $17) 15... Nxc3) 14. Qh5 $1 $11 {[%emt 0:04:52]} Qe8 {[%emt 0:01:10] Strongly threatening ...f6.} 15. Nh4 {[%emt 0:00:25]} (15. axb5 $11 {remains equal.} cxb5 16. Ng5 Bxg5 17. Bxg5) 15... Nxa4 $17 {[%emt 0:09:16]} 16. f4 {[%emt 0:00:48]} Bxh4 {[%emt 0:01:13]} (16... c5 $17 {And now ...Bxh4 would win.} 17. d5 Ra6) 17. Qxh4 $11 {[%emt 0:01:23]} f6 {[%emt 0:06:20]} 18. Nxc4 {[%emt 0:03:19]} bxc4 {[%emt 0:00:32]} 19. Rxa4 {[%emt 0:00:07][%cal Ba1a4,Ba4c4,Bc4c5][%mdl 32]} c5 $1 $36 {[%emt 0:00:28][%mdl 2048] White is under pressure.} 20. Rxc4 {[%emt 0:03:40]} Ba6 {[%emt 0:00:04]} 21. Rxc5 {[%emt 0:00:03][%cal Oc5h5] aiming for Rh5!} Bxf1 {[%emt 0:00:04]} 22. Bxf1 {[%emt 0:04:06] [#]} ({White should play} 22. Rh5 $1 $15 Be2 23. Rxh7+ Kg8 24. Kf2) 22... f5 $1 $17 {[%emt 0:00:36]} 23. exf5 {[%emt 0:01:05]} Nd7 {[%emt 0:00:43]} 24. f6 {[%emt 0:01:20]} Nxf6 {[%emt 0:00:40]} 25. Bd2 {[%emt 0:01:34]} Qg6 {[%emt 0:01:40] Threatens to win with ...Qe4.} 26. Bxa5 $2 {[%emt 0:00:36][%mdl 8192] [#]} (26. Qg5 $17 Qxg5 27. fxg5) 26... Qe4 $19 {[%emt 0:00:29] Black is clearly winning.} 27. f5 {[%emt 0:00:31]} Qe3+ {[%emt 0:00:40]} 28. Kh1 {[%emt 0:00:29]} Ne4 {[%emt 0:02:09] Weighted Error Value: White=0.87/Black=0.37} (28... Qf3+ $142 29. Kg1 Ng4) 0-1